[Event "AZE-ch Men 2019"]
[Site "Baku"]
[Date "2019.01.20"]
[Round "5"]
[White "Allahverdiyeva, Ayan"]
[Black "Guliev, Logman"]
[Result "1/2-1/2"]
[ECO "B89"]
[WhiteElo "1975"]
[BlackElo "2322"]
[Annotator "ChessBase"]
[PlyCount "92"]
[EventDate "2019.01.16"]
[EventType "swiss"]
[EventCountry "AZE"]
[SourceTitle "playchess.com"]
[Source "ChessBase"]
[SourceQuality "1"]
[TimeControl "40/5400+30:1800+30"]

1. e4 {[%emt 0:00:40]} c5 {[%emt 0:00:00]} 2. Nf3 {[%emt 0:00:03]} d6 {[%emt 0:00:00]} 3. d4 {[%emt 0:00:03]} cxd4 {[%emt 0:00:00]} 4. Nxd4 {[%emt 0:00:12]} Nf6 {[%emt 0:00:00]} 5. Nc3 {[%emt 0:00:09]} Nc6 {[%emt 0:00:12]} 6. Bc4 {[%emt 0:00:33]} e6 {[%emt 0:00:45]} 7. Be3 {[%emt 0:00:47]} a6 {[%emt 0:00:10]} 8. Bb3 {[%emt 0:00:14]} Be7 {[%emt 0:00:17]} 9. Qe2 {[%emt 0:00:37]} Na5 {[%emt 0:01:17]} 10. g4 {[%emt 0:03:58]} Nxb3 {[%emt 0:00:15]} 11. axb3 {[%emt 0:00:09]} d5 {[%emt 0:07:30]} 12. e5 {[%emt 0:18:43]} Ne4 {[%emt 0:00:24]} 13. f3 {[%emt 0:01:31]} Bh4+ {[%emt 0:00:43]} 14. Kd1 {[%emt 0:00:06]} Nxc3+ {[%emt 0:00:38]} 15. bxc3 {[%emt 0:00:07]} O-O {[%emt 0:02:56]} 16. f4 {[%emt 0:05:42]} f6 {[%emt 0:00:14]} 17. Kd2 {[%emt 0:08:42]} fxe5 {[%emt 0:00:26]} 18. fxe5 {[%emt 0:00:04]} Bd7 {[%emt 0:02:04]} 19. Rhf1 {[%emt 0:01:45]} Qc7 {[%emt 0:02:24]} 20. Rxf8+ {[%emt 0:27:47]} Rxf8 {[%emt 0:01:16]} 21. Rf1 {[%emt 0:00:31]} Rxf1 {[%emt 0:21:45]} 22. Qxf1 {[%emt 0:00:08]} Be7 {[%emt 0:00:07]} 23. Qf4 {[%emt 0:05:33]} a5 {[%emt 0:07:24]} 24. Nf3 {[%emt 0:00:42]} Be8 {[%emt 0:06:01]} 25. Qd4 {[%emt 0:05:39]} Bd8 {[%emt 0:07:37]} 26. Ng5 {[%emt 0:04:35]} Qd7 {[%emt 0:01:27]} 27. Kc1 {[%emt 0:05:25]} b5 {[%emt 0:00:15]} 28. Kb2 {[%emt 0:00:31]} Bg6 {[%emt 0:03:16]} 29. Nh3 {[%emt 0:04:25]} Bc7 {[%emt 0:05:09]} 30. Nf4 {[%emt 0:03:14]} Be4 {[%emt 0:00:12]} 31. Qa7 {[%emt 0:00:21]} b4 {[%emt 0:06:57]} 32. Bb6 {[%emt 0:01:39]} bxc3+ {[%emt 0:00:02]} 33. Ka2 {[%emt 0:00:47]} Bxc2 {[%emt 0:13:11]} 34. Qxc7 {[%emt 0:00:41]} Bxb3+ {[%emt 0:00:04]} 35. Kxb3 {[%emt 0:00:10]} Qb5+ {[%emt 0:00:01]} 36. Kxc3 {[%emt 0:00:31]} Qb4+ {[%emt 0:00:01]} 37. Kd3 {[%emt 0:00:56]} Qe4+ {[%emt 0:00:02]} 38. Kc3 {[%emt 0:00:26]} Qb4+ {[%emt 0:00:02]} 39. Kd3 Qe4+ 40. Kc3 Qb4+ 41. Kd3 Qe4+ 42. Kc3 Qb4+ {Kb3 Qb5+ Kc3 Qb4+} 43. Kd3 Qe4+ 44. Kc3 Qb4+ 45. Kc2 Qa4+ 46. Kc3 Qb4+ 1/2-1/2

[Event "AZE-ch Men 2019"]
[Site "Baku"]
[Date "2019.01.21"]
[Round "6"]
[White "Bajarani, Ulvi"]
[Black "Zeynalov, Farid"]
[Result "1/2-1/2"]
[ECO "D80"]
[WhiteElo "2421"]
[BlackElo "2344"]
[Annotator "RC"]
[PlyCount "80"]
[EventDate "2019.01.16"]
[EventType "swiss"]
[EventCountry "AZE"]
[SourceTitle "playchess.com"]
[Source "ChessBase"]
[SourceQuality "1"]
[TimeControl "40/5400+30:1800+30"]

1. d4 Nf6 2. c4 g6 3. Nc3 d5 4. Bg5 Ne4 5. Bh4 Nxc3 6. bxc3 dxc4 7. e3 Be6 8. Be2 {[%emt 0:00:20]} Bg7 {[%emt 0:03:10]} 9. Nh3 {[%emt 0:00:08]} O-O {[%emt 0:02:13]} 10. Nf4 {[%emt 0:00:54]} Bc8 {[%emt 0:00:03]} 11. Bxc4 {[%emt 0:00:39]} c5 {[%emt 0:00:21]} 12. O-O {[%emt 0:00:39]} Nc6 {[%emt 0:01:44]} 13. Rc1 {[%emt 0:07:21]} Qd6 {[%emt 0:07:59]} 14. Bg3 {[%emt 0:01:33]} e5 {[%emt 0:02:23]} 15. Nd3 {[%emt 0:03:42]} cxd4 {[%emt 0:03:27]} 16. cxd4 {[%emt 0:00:06]} Qe7 {[%emt 0:01:21]} 17. Nxe5 {[%emt 0:03:18]} Nxe5 {[%emt 0:00:16]} 18. dxe5 {[%emt 0:00:08]} Bxe5 {[%emt 0:00:24]} 19. Bxe5 {[%emt 0:00:37]} Qxe5 {[%emt 0:00:03]} 20. Qb3 {[%emt 0:00:08]} Rb8 {[%emt 0:05:47]} 21. Rfd1 {[%emt 0:01:30]} Bf5 {[%emt 0:01:56]} 22. Bd5 {[%emt 0:01:12]} Qe7 {[%emt 0:04:18]} 23. f3 {[%emt 0:02:19]} Rbc8 {[%emt 0:09:51]} 24. e4 {[%emt 0:01:38]} Rxc1 {[%emt 0:00:42]} 25. Rxc1 {[%emt 0:00:08]} Rc8 {[%emt 0:03:57]} 26. Rd1 {[%emt 0:01:25]} Be6 {[%emt 0:03:41]} 27. Bxe6 {[%emt 0:00:09]} fxe6 {[%emt 0:01:01]} 28. h3 {[%emt 0:01:02]} Rc7 {[%emt 0:00:58]} 29. Kh1 {[%emt 0:04:04]} Rd7 {[%emt 0:02:03]} 30. Rc1 {[%emt 0:00:22]} Kg7 {[%emt 0:09:02]} 31. Qc3+ {[%emt 0:07:18]} Qf6 {[%emt 0:02:19]} 32. Qc8 {[%emt 0:02:48]} Rf7 {[%emt 0:00:29]} 33. Rd1 {[%emt 0:03:41]} Qe5 {[%emt 0:03:45]} 34. Qc1 {[%emt 0:01:30]} b5 {[%emt 0:06:38]} 35. Rd8 {[%emt 0:01:58]} b4 {[%emt 0:04:34]} 36. Qd1 {[%emt 0:02:16]} a5 {[%emt 0:03:07]} 37. Rd3 {[%emt 0:04:28]} g5 {[%emt 0:07:22]} 38. Rd7 {[%emt 0:03:11]} Rxd7 {[%emt 0:02:47]} 39. Qxd7+ {[%emt 0:00:08]} Kh6 {[%emt 0:00:41]} 40. Qf7 {[%emt 0:00:00]} Qa1+ {[%emt 0:00:00]} 1/2-1/2

[Event "AZE-ch Men 2019"]
[Site "Baku"]
[Date "2019.01.21"]
[Round "6"]
[White "Abdulov, Orkhan"]
[Black "Muradli, Mahammad"]
[Result "0-1"]
[ECO "B06"]
[WhiteElo "2395"]
[BlackElo "2432"]
[Annotator "ChessBase"]
[PlyCount "78"]
[EventDate "2019.01.16"]
[EventType "swiss"]
[EventCountry "AZE"]
[SourceTitle "playchess.com"]
[Source "ChessBase"]
[SourceQuality "1"]
[TimeControl "40/5400+30:1800+30"]

1. e4 {[%emt 0:07:30]} d6 {[%emt 0:01:32]} 2. d4 {[%emt 0:00:11]} g6 {[%emt 0:00:05]} 3. Nc3 {[%emt 0:03:24]} Bg7 {[%emt 0:00:04]} 4. Be3 {[%emt 0:02:01]} a6 {[%emt 0:00:40]} 5. Qd2 {[%emt 0:02:16]} b5 {[%emt 0:00:23]} 6. Bd3 {[%emt 0:09:45]} Nd7 {[%emt 0:06:17]} 7. f4 {[%emt 0:08:24]} Bb7 {[%emt 0:08:18]} 8. Nf3 {[%emt 0:01:34]} c5 {[%emt 0:06:46]} 9. dxc5 {[%emt 0:02:45]} Nxc5 {[%emt 0:01:15]} 10. a3 {[%emt 0:15:09]} Rc8 {[%emt 0:05:49]} 11. O-O {[%emt 0:04:40]} Nf6 {[%emt 0:06:27]} 12. e5 {[%emt 0:07:53]} dxe5 {[%emt 0:03:25]} 13. Bxc5 {[%emt 0:04:27]} Rxc5 {[%emt 0:01:15]} 14. fxe5 {[%emt 0:00:03]} Ng4 {[%emt 0:02:32]} 15. Rad1 {[%emt 0:10:26]} Qb6 {[%emt 0:04:29]} 16. Kh1 {[%emt 0:01:59]} O-O {[%emt 0:02:03]} 17. Ne4 {[%emt 0:04:02]} Rd5 {[%emt 0:06:57]} 18. Qg5 {[%emt 0:06:16]} Ne3 {[%emt 0:04:42]} 19. Qxe7 {[%emt 0:01:57]} Nxd1 {[%emt 0:00:50]} 20. Rxd1 {[%emt 0:00:32]} Rdd8 {[%emt 0:01:54]} 21. Re1 {[%emt 0:03:00]} Rfe8 {[%emt 0:02:19]} 22. Qh4 {[%emt 0:00:37]} Bxe4 {[%emt 0:01:33]} 23. Rxe4 {[%emt 0:00:28]} f5 {[%emt 0:05:27]} 24. Re1 {[%emt 0:00:45]} Rd7 {[%emt 0:02:34]} 25. a4 {[%emt 0:00:59]} Qc5 {[%emt 0:05:23]} 26. axb5 {[%emt 0:00:21]} axb5 {[%emt 0:00:02]} 27. b4 {[%emt 0:01:03]} Qd5 {[%emt 0:00:05]} 28. Ra1 {[%emt 0:00:45]} Bxe5 {[%emt 0:01:31]} 29. Ra5 {[%emt 0:00:07]} Kg7 {[%emt 0:12:45]} 30. Rxb5 {[%emt 0:00:31]} Qd6 {[%emt 0:00:08]} 31. Qe1 {[%emt 0:00:56]} Rde7 {[%emt 0:00:33]} 32. Qd2 {[%emt 0:00:32]} Bxh2 {[%emt 0:01:48]} 33. g4 {[%emt 0:00:29]} fxg4 {[%emt 0:02:06]} 34. Nxh2 {[%emt 0:00:19]} Re1+ {[%emt 0:00:05]} 35. Kg2 {[%emt 0:00:12]} Qc6+ {[%emt 0:00:17]} 36. Kf2 {[%emt 0:00:56]} g3+ {[%emt 0:02:16]} 37. Kxg3 {[%emt 0:00:01]} Rg1+ {[%emt 0:00:02]} 38. Kh3 {[%emt 0:00:42]} Re3+ {[%emt 0:00:12]} 39. Qxe3 {[%emt 0:00:31]} Qg2+ {[%emt 0:00:01]} 0-1

[Event "AZE-ch Men 2019"]
[Site "Baku"]
[Date "2019.01.21"]
[Round "6"]
[White "Shahaliyev, Ismayil"]
[Black "Ahadzade, Kanan"]
[Result "1-0"]
[ECO "C62"]
[WhiteElo "2389"]
[BlackElo "2019"]
[Annotator "ChessBase"]
[PlyCount "81"]
[EventDate "2019.01.16"]
[EventType "swiss"]
[EventCountry "AZE"]
[SourceTitle "playchess.com"]
[Source "ChessBase"]
[SourceQuality "1"]
[TimeControl "40/5400+30:1800+30"]

1. e4 e5 2. Nf3 Nc6 3. Bb5 d6 4. O-O {[%emt 0:00:55]} g6 {[%emt 0:01:57]} 5. d4 {[%emt 0:00:56]} Bd7 {[%emt 0:03:06]} 6. dxe5 {[%emt 0:06:48]} dxe5 {[%emt 0:08:28]} 7. Nc3 {[%emt 0:04:32]} Bg7 {[%emt 0:02:58]} 8. Nd5 {[%emt 0:05:03]} h6 {[%emt 0:01:38]} 9. b3 {[%emt 0:01:46]} Nd4 {[%emt 0:02:36]} 10. Bxd7+ {[%emt 0:02:12]} Qxd7 {[%emt 0:01:29]} 11. Nxd4 {[%emt 0:04:32]} exd4 {[%emt 0:00:52]} 12. Bb2 {[%emt 0:00:02]} c5 {[%emt 0:00:53]} 13. b4 {[%emt 0:04:36]} b6 {[%emt 0:14:32]} 14. Qf3 {[%emt 0:03:29]} Ne7 {[%emt 0:06:55]} 15. Nf6+ {[%emt 0:01:46]} Bxf6 {[%emt 0:00:05]} 16. Qxf6 {[%emt 0:00:21]} O-O {[%emt 0:00:40]} 17. c3 {[%emt 0:01:07]} Qe6 {[%emt 0:09:04]} 18. Qxe6 {[%emt 0:03:00]} fxe6 {[%emt 0:00:10]} 19. bxc5 {[%emt 0:00:31]} dxc3 {[%emt 0:02:32]} 20. Bxc3 {[%emt 0:05:30]} bxc5 {[%emt 0:02:59]} 21. Rfc1 {[%emt 0:00:27]} Rfc8 {[%emt 0:05:26]} 22. Rab1 {[%emt 0:00:51]} Rab8 {[%emt 0:02:53]} 23. Rxb8 {[%emt 0:01:48]} Rxb8 {[%emt 0:00:23]} 24. Be5 {[%emt 0:00:08]} Rb6 {[%emt 0:08:46]} 25. Bf4 {[%emt 0:03:09]} Ra6 {[%emt 0:03:42]} 26. h4 {[%emt 0:06:03]} Ra4 {[%emt 0:04:37]} 27. Rxc5 {[%emt 0:11:32]} Rxe4 {[%emt 0:00:25]} 28. Bxh6 {[%emt 0:01:02]} Nd5 {[%emt 0:04:18]} 29. Bg5 {[%emt 0:04:18]} Ra4 {[%emt 0:02:25]} 30. Rc2 {[%emt 0:01:18]} Kf7 {[%emt 0:00:22]} 31. g3 {[%emt 0:01:23]} e5 {[%emt 0:01:52]} 32. Rc5 {[%emt 0:07:01]} Ke6 {[%emt 0:02:50]} 33. Rc6+ {[%emt 0:00:08]} Kf5 {[%emt 0:02:04]} 34. Rd6 {[%emt 0:00:54]} Ra5 {[%emt 0:02:07]} 35. Kg2 {[%emt 0:01:38]} e4 {[%emt 0:00:50]} 36. a3 {[%emt 0:03:25]} Ke5 {[%emt 0:02:12]} 37. Rxg6 {[%emt 0:00:29]} Rxa3 {[%emt 0:00:02]} 38. h5 {[%emt 0:01:18]} Kf5 {[%emt 0:01:30]} 39. g4+ {[%emt 0:02:22]} Ke5 {[%emt 0:00:49]} 40. h6 {[%emt 0:00:00]} e3 {[%emt 0:00:00]} 41. h7 {[%emt 0:00:29]} 1-0

[Event "AZE-ch Men 2019"]
[Site "Baku"]
[Date "2019.01.21"]
[Round "6"]
[White "Davidov, Samir"]
[Black "Bashirli, Nail"]
[Result "1/2-1/2"]
[ECO "B50"]
[WhiteElo "2344"]
[BlackElo "2324"]
[Annotator "ChessBase"]
[PlyCount "101"]
[EventDate "2019.01.16"]
[EventType "swiss"]
[EventCountry "AZE"]
[SourceTitle "playchess.com"]
[Source "ChessBase"]
[SourceQuality "1"]
[TimeControl "40/5400+30:1800+30"]

1. e4 {[%emt 0:09:13]} c5 {[%emt 0:03:18]} 2. Nf3 {[%emt 0:00:13]} d6 {[%emt 0:00:23]} 3. d3 {[%emt 0:00:16]} Nc6 {[%emt 0:00:35]} 4. g3 {[%emt 0:00:13]} g6 {[%emt 0:00:43]} 5. Bg2 {[%emt 0:00:18]} Bg7 {[%emt 0:00:07]} 6. O-O {[%emt 0:00:10]} Bg4 {[%emt 0:01:06]} 7. h3 {[%emt 0:00:25]} Bxf3 {[%emt 0:00:23]} 8. Bxf3 {[%emt 0:00:07]} h5 {[%emt 0:00:02]} 9. c3 {[%emt 0:00:09]} h4 {[%emt 0:00:43]} 10. g4 {[%emt 0:00:20]} e5 {[%emt 0:01:49]} 11. Bg2 {[%emt 0:00:07]} Bh6 {[%emt 0:01:27]} 12. f4 {[%emt 0:01:28]} exf4 {[%emt 0:03:30]} 13. Bxf4 {[%emt 0:00:06]} Bxf4 {[%emt 0:07:22]} 14. Rxf4 {[%emt 0:00:06]} g5 {[%emt 0:00:08]} 15. Rf2 {[%emt 0:00:32]} Nge7 {[%emt 0:01:52]} 16. Qb3 {[%emt 0:00:20]} O-O {[%emt 0:01:01]} 17. Nd2 {[%emt 0:00:06]} Ng6 {[%emt 0:01:37]} 18. e5 {[%emt 0:03:59]} Nf4 {[%emt 0:04:37]} 19. Rxf4 {[%emt 0:11:32]} gxf4 {[%emt 0:01:32]} 20. Qxb7 {[%emt 0:00:14]} Nxe5 {[%emt 0:00:21]} 21. Qxa8 {[%emt 0:01:32]} Qxa8 {[%emt 0:00:15]} 22. Bxa8 {[%emt 0:00:04]} Rxa8 {[%emt 0:00:44]} 23. Rd1 {[%emt 0:00:06]} Re8 {[%emt 0:11:33]} 24. Ne4 {[%emt 0:15:45]} Re6 {[%emt 0:00:17]} 25. Kf2 {[%emt 0:00:04]} f6 {[%emt 0:02:19]} 26. b3 {[%emt 0:08:26]} Kg7 {[%emt 0:01:44]} 27. c4 {[%emt 0:09:28]} Kg6 {[%emt 0:01:35]} 28. Ke2 {[%emt 0:03:44]} Nf7 {[%emt 0:05:12]} 29. Kf3 {[%emt 0:06:30]} Ng5+ {[%emt 0:00:39]} 30. Kxf4 {[%emt 0:00:02]} Nxh3+ {[%emt 0:00:06]} 31. Kf3 {[%emt 0:00:02]} Ng5+ {[%emt 0:01:38]} 32. Kf4 {[%emt 0:00:01]} Re7 {[%emt 0:20:19]} 33. a3 {[%emt 0:15:31]} Nxe4 {[%emt 0:08:50]} 34. dxe4 {[%emt 0:00:07]} Rh7 {[%emt 0:03:07]} 35. Rxd6 {[%emt 0:01:35]} h3 {[%emt 0:02:04]} 36. Rd1 {[%emt 0:00:05]} h2 {[%emt 0:00:15]} 37. Rh1 {[%emt 0:00:04]} a5 {[%emt 0:00:42]} 38. e5 {[%emt 0:00:12]} fxe5+ {[%emt 0:01:11]} 39. Kxe5 {[%emt 0:00:04]} Kg5 {[%emt 0:00:29]} 40. Kd5 {[%emt 0:00:00]} Kxg4 {[%emt 0:00:00]} 41. Kxc5 {[%emt 0:00:12]} Kg3 {[%emt 0:01:04]} 42. Kb6 {[%emt 0:10:59]} Kg2 {[%emt 0:02:00]} 43. Rxh2+ {[%emt 0:00:13]} Rxh2 {[%emt 0:01:08]} 44. Kxa5 {[%emt 0:02:33]} Kf3 {[%emt 0:00:30]} 45. a4 {[%emt 0:05:30]} Ke4 {[%emt 0:00:38]} 46. Kb5 {[%emt 0:06:49]} Rh5+ {[%emt 0:06:54]} 47. Kb6 {[%emt 0:01:24]} Rh6+ {[%emt 0:02:10]} 48. Kb5 {[%emt 0:00:12]} Kd4 {[%emt 0:02:42]} 49. a5 {[%emt 0:00:33]} Rh5+ {[%emt 0:00:33]} 50. Kb6 {[%emt 0:00:06]} Rh6+ {[%emt 0:00:05]} 51. Kb5 1/2-1/2

[Event "AZE-ch Men 2019"]
[Site "Baku"]
[Date "2019.01.21"]
[Round "6"]
[White "Guliev, Sarhan"]
[Black "Gadimbayli, Abdulla"]
[Result "0-1"]
[ECO "A40"]
[WhiteElo "2342"]
[BlackElo "2409"]
[Annotator "ChessBase"]
[PlyCount "76"]
[EventDate "2019.01.16"]
[EventType "swiss"]
[EventCountry "AZE"]
[SourceTitle "playchess.com"]
[Source "ChessBase"]
[SourceQuality "1"]
[TimeControl "40/5400+30:1800+30"]

1. d4 e6 {[%emt 0:02:53]} 2. c4 {[%emt 0:00:08]} b6 {[%emt 0:00:10]} 3. a3 {[%emt 0:02:14]} Bb7 {[%emt 0:00:33]} 4. Nc3 {[%emt 0:00:10]} Nf6 {[%emt 0:00:29]} 5. Nf3 {[%emt 0:00:42]} d5 {[%emt 0:00:16]} 6. cxd5 {[%emt 0:00:23]} Nxd5 {[%emt 0:00:27]} 7. e3 {[%emt 0:00:24]} Nxc3 {[%emt 0:06:39]} 8. bxc3 {[%emt 0:02:00]} Be7 {[%emt 0:00:16]} 9. Bb5+ {[%emt 0:00:23]} c6 {[%emt 0:00:55]} 10. Bd3 {[%emt 0:00:07]} O-O {[%emt 0:03:57]} 11. O-O {[%emt 0:00:38]} c5 {[%emt 0:01:36]} 12. Qe2 {[%emt 0:08:33]} Nc6 {[%emt 0:09:25]} 13. Bb2 {[%emt 0:02:08]} Na5 {[%emt 0:04:04]} 14. Rad1 {[%emt 0:05:34]} c4 {[%emt 0:15:39]} 15. Bb1 {[%emt 0:13:10]} b5 {[%emt 0:08:22]} 16. Ne5 {[%emt 0:02:19]} Bd6 {[%emt 0:04:14]} 17. f4 {[%emt 0:00:56]} Qe7 {[%emt 0:03:47]} 18. e4 {[%emt 0:01:35]} Rad8 {[%emt 0:05:23]} 19. Rf3 {[%emt 0:03:03]} f6 {[%emt 0:04:50]} 20. Ng4 {[%emt 0:04:20]} f5 {[%emt 0:03:08]} 21. Ne5 {[%emt 0:00:30]} Bxe5 {[%emt 0:01:13]} 22. fxe5 {[%emt 0:00:14]} fxe4 {[%emt 0:02:43]} 23. Bxe4 {[%emt 0:00:07]} Bxe4 {[%emt 0:01:15]} 24. Qxe4 {[%emt 0:00:02]} Rxf3 {[%emt 0:01:29]} 25. gxf3 {[%emt 0:05:33]} Nb3 {[%emt 0:03:58]} 26. Kh1 {[%emt 0:02:15]} Nc5 {[%emt 0:03:16]} 27. Qc6 {[%emt 0:13:45]} Nd3 {[%emt 0:01:48]} 28. Rd2 {[%emt 0:00:17]} Qf7 {[%emt 0:05:42]} 29. a4 {[%emt 0:00:59]} Nxe5 {[%emt 0:00:41]} 30. Qe4 {[%emt 0:09:09]} Qxf3+ {[%emt 0:00:20]} 31. Qxf3 {[%emt 0:00:02]} Nxf3 {[%emt 0:00:05]} 32. Rf2 {[%emt 0:00:09]} Ne1 {[%emt 0:00:51]} 33. Ba3 {[%emt 0:01:39]} Nd3 {[%emt 0:00:16]} 34. Re2 {[%emt 0:00:05]} Nf4 {[%emt 0:03:44]} 35. Re4 {[%emt 0:01:53]} Nd5 {[%emt 0:00:19]} 36. Rxe6 {[%emt 0:02:14]} Nxc3 {[%emt 0:00:49]} 37. a5 {[%emt 0:00:05]} Nd5 {[%emt 0:00:48]} 38. Bc5 {[%emt 0:00:52]} Rd7 {[%emt 0:01:03]} 0-1

[Event "AZE-ch Men 2019"]
[Site "Baku"]
[Date "2019.01.21"]
[Round "6"]
[White "Abbasov, Amil"]
[Black "Allahverdiyeva, Ayan"]
[Result "1-0"]
[ECO "B51"]
[WhiteElo "2190"]
[BlackElo "1975"]
[Annotator "NA"]
[PlyCount "89"]
[EventDate "2019.01.16"]
[EventType "swiss"]
[EventCountry "AZE"]
[SourceTitle "playchess.com"]
[Source "ChessBase"]
[SourceQuality "1"]
[TimeControl "40/5400+30:1800+30"]

1. e4 c5 {[%emt 0:05:48]} 2. Nf3 {[%emt 0:00:28]} d6 {[%emt 0:00:30]} 3. Bb5+ {[%emt 0:01:30]} Nd7 {[%emt 0:00:49]} 4. O-O {[%emt 0:00:35]} a6 {[%emt 0:00:44]} 5. Bxd7+ {[%emt 0:00:31]} Bxd7 {[%emt 0:00:11]} 6. d4 {[%emt 0:00:13]} cxd4 {[%emt 0:00:28]} 7. Qxd4 {[%emt 0:00:09]} Rc8 {[%emt 0:00:55] B51: Sicilian: Moscow Variation (3 Bb5+) without 3...Bd7} (7... Qc7 8. Nc3 e6 9. Bf4 Bc6 10. Rad1 Rd8 11. Nd5 exd5 12. exd5 Bb5 13. Rfe1+ Ne7 14. Ng5 h6 15. Ne4 {1-0 (77) Naiditsch,A (2721)-Wojtaszek,R (2727) Douglas 2018}) 8. c4 {[%emt 0:13:37]} Qc7 {[%emt 0:00:50]} 9. b3 {[%emt 0:01:36]} e5 {[%emt 0:01:02]} 10. Qd3 {[%emt 0:01:28]} b5 {[%emt 0:02:10]} 11. Nbd2 {[%emt 0:02:03]} Nf6 {[%emt 0:02:53]} 12. Rd1 $146 {[%emt 0:10:36]} ({Predecessor:} 12. Ba3 Be7 13. Rfc1 Qb8 14. cxb5 Bxb5 15. Rxc8+ Qxc8 16. Nc4 O-O 17. Nfxe5 Re8 18. Nf3 d5 19. Bxe7 dxc4 20. bxc4 {½-½ (20) Breder,D (2463)-Sadzikowski,D (2538) Germany 2016}) 12... Be7 {[%emt 0:08:37]} 13. Ba3 {[%emt 0:01:02]} Qb6 {[%emt 0:01:09]} 14. Rac1 {[%emt 0:16:19]} b4 {[%emt 0:05:01]} 15. Bb2 {[%emt 0:00:20]} O-O {[%emt 0:02:30]} 16. Nf1 {[%emt 0:05:48]} Bc6 {[%emt 0:08:38]} 17. Ng3 {[%emt 0:03:29]} Rfd8 {[%emt 0:01:46]} 18. Qe2 {[%emt 0:01:39]} Qb7 {[%emt 0:03:51]} 19. Nd2 {[%emt 0:01:55]} Nd7 {[%emt 0:04:16]} 20. Nf5 {[%emt 0:14:26]} Bf8 {[%emt 0:03:06]} 21. Re1 {[%emt 0:04:02]} Nc5 {[%emt 0:12:56]} 22. Rcd1 {[%emt 0:00:45]} g6 {[%emt 0:02:24]} 23. Ng3 {[%emt 0:00:16]} Ne6 {[%emt 0:00:41]} 24. Ndf1 {[%emt 0:01:13]} Bg7 {[%emt 0:04:27]} 25. Qd2 {[%emt 0:03:59]} h5 {[%emt 0:04:51]} 26. f3 {[%emt 0:01:21]} h4 {[%emt 0:05:19]} 27. Nh1 $1 {[%emt 0:01:06] [#]} h3 $1 {[%emt 0:02:01]} 28. g3 {[%emt 0:00:39]} Kh7 {[%emt 0:04:27]} ({Better is} 28... a5 $15) 29. Nf2 {[%emt 0:01:33]} Bh6 {[%emt 0:01:02]} ({Black should try} 29... f5 $11) 30. Qd3 {[%emt 0:00:11]} (30. Ne3 $16) 30... f5 {[%emt 0:04:44]} 31. Nd2 {[%emt 0:07:08]} Ng5 {[%emt 0:05:59]} 32. Qf1 {[%emt 0:01:52]} Rf8 {[%emt 0:01:22]} 33. Nxh3 {[%emt 0:01:26]} Nxe4 {[%emt 0:00:28]} 34. Nb1 {[%emt 0:02:55]} Ng5 {[%emt 0:00:34]} 35. Nxg5+ {[%emt 0:00:18]} Bxg5 {[%emt 0:00:05]} 36. Qh3+ {[%emt 0:00:12]} Bh6 {[%emt 0:00:50]} 37. Rxd6 {[%emt 0:00:40]} Bxf3 {[%emt 0:00:28]} 38. Bc1 {[%emt 0:01:00]} Bh5 {[%emt 0:00:09]} 39. Bxh6 {[%emt 0:00:38]} Kxh6 {[%emt 0:00:04]} 40. Rxe5 {[%emt 0:00:00]} Rce8 $2 {[%emt 0:00:00]} (40... Qa7+ $11 {and Black has nothing to worry.} 41. Kg2 Rcd8 42. Rxg6+ Kxg6 43. Re6+ Rf6 44. Rxf6+ Kxf6 45. Qh4+ (45. Qxh5 $2 Qa8+ 46. Kg1 Qe4 $19) 45... Kg6 46. Qxd8 Qe3 47. Qd6+ {[%mdl 64] Double Attack} Kg7) 41. g4 {[%emt 0:17:46]} Qa7+ {[%emt 0:11:08]} 42. c5 {[%emt 0:00:32]} Rxe5 {[%emt 0:00:13]} 43. Qxh5+ $18 {[%emt 0:00:25]} Kg7 {[%emt 0:00:57]} 44. Rxg6+ {[%emt 0:01:26]} Kf7 {[%emt 0:00:04]} 45. Rxa6+ {[%emt 0:00:11]} 1-0

[Event "AZE-ch Men 2019"]
[Site "Baku"]
[Date "2019.01.21"]
[Round "6"]
[White "Ilyasli, Ughur"]
[Black "Babazada, Khazar"]
[Result "0-1"]
[ECO "A88"]
[WhiteElo "2148"]
[BlackElo "2299"]
[Annotator "NA"]
[PlyCount "92"]
[EventDate "2019.01.16"]
[EventType "swiss"]
[EventCountry "AZE"]
[SourceTitle "playchess.com"]
[Source "ChessBase"]
[SourceQuality "1"]
[TimeControl "40/5400+30:1800+30"]

1. Nf3 f5 2. d4 {[%emt 0:01:31]} Nf6 {[%emt 0:01:50]} 3. c4 {[%emt 0:00:28]} g6 {[%emt 0:00:36]} 4. g3 {[%emt 0:02:22]} Bg7 {[%emt 0:00:04]} 5. Bg2 {[%emt 0:00:09]} O-O {[%emt 0:00:06]} 6. O-O {[%emt 0:01:24]} d6 {[%emt 0:03:40]} 7. Nc3 {[%emt 0:01:23]} c6 {[%emt 0:01:19]} 8. Re1 {[%emt 0:13:08]} Ne4 {[%emt 0:01:49]} 9. Qb3 {[%emt 0:24:39] LiveBook: 5 Games A88: Dutch Defence: Leningrad System: 5 Nf3 0-0 6 0-0 d6 7 Nc3 c6} (9. Qc2 Nxc3 10. bxc3 e5 11. e4 fxe4 12. Qxe4 Bf5 13. Qe3 Nd7 14. Ba3 Nb6 15. Qe2 Re8 16. dxe5 dxe5 17. Rad1 {0-1 (34) Vachier Lagrave,M (2745)-Ponomariov,R (2731) Beijing 2013}) 9... Kh8 {[%emt 0:01:06]} 10. Bf4 {[%emt 0:06:39]} Qa5 $146 {[%emt 0:04:37]} ({Predecessor:} 10... Na6 11. Rad1 Nxc3 12. Qxc3 Nc5 13. Qc1 Ne4 14. Bh6 Be6 15. Bxg7+ Kxg7 16. b3 Bf7 {½-½ (37) Ghaem Maghami,E (2574)-Potapov,P (2493) Doha 2016}) 11. c5 {[%emt 0:06:15]} d5 {[%emt 0:00:45]} 12. Nxe4 {[%emt 0:13:41]} fxe4 {[%emt 0:00:36]} 13. Ne5 {[%emt 0:00:11]} Na6 {[%emt 0:05:21]} 14. h4 {[%emt 0:06:02]} Nc7 {[%emt 0:00:38]} 15. Bg5 {[%emt 0:07:06]} Ne6 {[%emt 0:01:33]} 16. Bxe7 {[%emt 0:04:26]} Re8 {[%emt 0:01:10]} 17. Bd6 {[%emt 0:02:09]} Nxd4 {[%emt 0:01:12]} 18. Qd1 {[%emt 0:00:20]} Nf5 {[%emt 0:01:04]} ({But not} 18... Rxe5 19. Qxd4 Re8 20. Qe3 $17) 19. b4 {[%emt 0:02:57]} Qa3 {[%emt 0:01:15]} ({Don't take} 19... Qxb4 20. Rb1 $19) 20. Nf7+ {[%emt 0:03:22]} Kg8 {[%emt 0:00:13]} 21. Ng5 {[%emt 0:00:01]} h6 {[%emt 0:00:45]} 22. Nh3 {[%emt 0:00:09]} e3 {[%emt 0:00:28]} 23. f3 {[%emt 0:02:23]} Nxd6 {[%emt 0:01:23]} 24. cxd6 {[%emt 0:00:05]} Qxb4 {[%emt 0:00:06]} 25. d7 {[%emt 0:00:07]} Bxd7 {[%emt 0:00:42]} 26. Rb1 {[%emt 0:00:05]} Qd6 {[%emt 0:00:06]} 27. f4 {[%emt 0:01:07]} b5 {[%emt 0:00:14]} 28. Kh2 {[%emt 0:00:04]} Rad8 {[%emt 0:00:27]} 29. Ng1 {[%emt 0:00:06]} g5 {[%emt 0:04:19]} 30. Nf3 {[%emt 0:01:05]} gxf4 {[%emt 0:01:31]} 31. g4 {[%emt 0:00:33]} d4 {[%emt 0:00:54]} 32. g5 {[%emt 0:00:22]} h5 {[%emt 0:00:32]} 33. a4 {[%emt 0:00:25]} a6 {[%emt 0:00:19]} 34. axb5 {[%emt 0:00:48]} axb5 {[%emt 0:00:01]} 35. Qd3 {[%emt 0:00:28]} Qe6 {[%emt 0:02:58]} 36. Rh1 {[%emt 0:01:17]} c5 {[%emt 0:00:32]} 37. Rxb5 {[%emt 0:00:29]} c4 {[%emt 0:00:55]} 38. Qb1 {[%emt 0:00:01]} Bxb5 {[%emt 0:00:46]} 39. Qxb5 {[%emt 0:00:01]} d3 {[%emt 0:00:18]} 40. g6 {[%emt 0:00:00]} Qd5 {[%emt 0:00:00]} 41. Qa6 {[%emt 0:02:58]} d2 {[%emt 0:02:42]} 42. Ng5 {[%emt 0:00:09]} f3 {[%emt 0:00:24]} 43. Bxf3 $19 {[%emt 0:03:15]} Qd6+ {[%emt 0:00:04]} 44. Qxd6 {[%emt 0:00:19]} Rxd6 {[%emt 0:00:04]} 45. Bxh5 {[%emt 0:01:26]} d1=Q {[%emt 0:00:33]} 46. Rxd1 {[%emt 0:00:02]} Rxd1 {[%emt 0:00:08]} 0-1